fUSD/lending_fUSD_20240222
["ID","MTS","AMOUNT","RATE_DAILY","PERIOD"]
[314897407,1708625499074,-936.27,0.00033424,4]
[314897408,1708625499083,-500.0,0.00033424,4]
[314897409,1708625499093,-169.97961762,0.00033424,4]
[314897410,1708625499103,-500.0,0.00033424,4]
[314897411,1708625499112,-573.6,0.00033424,4]
[314897412,1708625499122,-156.950667,0.00033424,7]
[314897413,1708625499132,-500.0,0.00033424,4]
[314897414,1708625499141,-573.73,0.00033424,4]
[314897415,1708625499150,-156.950667,0.00033424,7]
[314897416,1708625499160,-906.98,0.00033424,4]
[314897417,1708625499170,-625.48,0.00033424,4]
[314897418,1708625499180,-619.25,0.00033424,4]
[314897419,1708625499190,-500.0,0.00033424,4]
[314897420,1708625499200,-802.24,0.00033424,4]
[314897421,1708625499209,-500.0,0.00033424,4]
[314897422,1708625499219,-500.0,0.00033424,4]
[314897423,1708625499229,-203.46165832,0.00033424,4]
[314897424,1708625499238,-553.85,0.00033424,4]
[314897425,1708625499249,-951.64,0.00033424,4]
[314897426,1708625499258,-500.0,0.00033424,4]
[314897427,1708625499268,-694.67,0.00033424,4]
[314897428,1708625499278,-500.0,0.00033424,4]
[314897429,1708625499288,-500.0,0.00033424,4]
[314897430,1708625499299,-991.06,0.00033424,4]
[314897431,1708625499309,-500.0,0.00033424,4]
[314897432,1708625499320,-676.95,0.00033424,4]
[314897433,1708625499329,-500.0,0.00033424,4]
[314897434,1708625499340,-764.63,0.00033424,4]
[314897435,1708625499350,-500.0,0.00033424,4]
[314897436,1708625499359,-508.78,0.00033424,4]
[314897437,1708625499369,-500.0,0.00033424,4]
[314897438,1708625499379,-500.0,0.00033424,2]
[314897439,1708625499389,-802.5,0.00033424,4]
[314897440,1708625499400,-500.0,0.00033424,4]
[314897441,1708625499410,-664.95,0.00033424,4]
[314897442,1708625499419,-500.0,0.00033424,4]
[314897443,1708625499432,-500.0,0.00033424,4]
[314897444,1708625499441,-692.13,0.00033424,4]
[314897445,1708625499451,-632.57,0.00033424,4]
[314897446,1708625499461,-509.92,0.00033424,4]
[314897447,1708625499471,-500.0,0.00033424,4]
[314897448,1708625499480,-500.0,0.00033424,4]
[314897449,1708625499490,-500.0,0.00033424,4]
[314897450,1708625499501,-500.0,0.00033424,4]
[314897451,1708625499510,-607.02,0.00033424,4]
[314897452,1708625499520,-792.22,0.00033424,4]
[314897453,1708625499529,-500.0,0.00033424,4]
[314897454,1708625499539,-522.02383035,0.00033424,4]
[314897455,1708625499548,-1057.84,0.00033424,4]
[314897456,1708625499558,-500.0,0.00033424,4]
[314897457,1708625499568,-967.9,0.00033424,4]
[314897458,1708625499578,-1015.71,0.00033424,4]
[314897459,1708625499587,-500.0,0.00033424,4]
[314897460,1708625499597,-1057.91,0.00033424,4]
[314897461,1708625499607,-500.0,0.00033424,4]
[314897462,1708625499616,-500.0,0.00033424,4]
[314897463,1708625499627,-1562.84,0.00033424,4]
[314897464,1708625499637,-500.0,0.00033424,2]
[314897465,1708625499647,-908.7,0.00033424,4]
[314897466,1708625499657,-574.22,0.00033424,4]
[314897467,1708625499667,-1195.95,0.00033424,4]
[314897468,1708625499678,-500.0,0.00033424,4]
[314897469,1708625499687,-500.0,0.00033424,4]
[314897470,1708625499697,-500.0,0.00033424,4]
[314897471,1708625499707,-151.0,0.00033424,7]
[314897472,1708625499717,-500.0,0.00033424,4]
[314897473,1708625499726,-711.8,0.00033424,4]
[314897474,1708625499735,-643.93,0.00033424,4]
[314897475,1708625499745,-500.0,0.00033424,4]
[314897476,1708625499754,-151.0,0.00033424,7]
[314897477,1708625499763,-500.0,0.00033424,4]
[314897478,1708625499773,-690.36,0.00033424,4]
[314897479,1708625499783,-500.0,0.00033424,4]
[314897480,1708625499792,-582.2,0.00033424,4]
[314897481,1708625499803,-623.27,0.00033424,4]
[314897482,1708625499813,-808.11,0.00033424,4]
[314897483,1708625499823,-500.0,0.00033424,4]
[314897484,1708625499833,-955.15,0.00033424,4]
[314897485,1708625499842,-500.0,0.00033424,4]
[314897486,1708625499852,-500.0,0.00033424,4]
[314897487,1708625499862,-151.0,0.00033424,7]
[314897488,1708625499873,-225.45984585,0.00033424,4]
[314897489,1708625499888,-500.0,0.00033424,2]
[314897490,1708625499899,-520.41,0.00033424,4]
[314897491,1708625499909,-500.0,0.00033424,4]
[314897492,1708625499921,-642.76,0.00033424,4]
[314897493,1708625499931,-500.0,0.00033424,4]
[314897494,1708625499941,-500.0,0.00033424,4]
[314897495,1708625499950,-500.0,0.00033424,4]
[314897496,1708625499961,-500.0,0.00033424,4]
[314897497,1708625499971,-814.72,0.00033424,4]
[314897498,1708625499981,-763.81,0.00033424,4]
[314897499,1708625499990,-500.0,0.00033424,4]
[314897500,1708625499999,-500.0,0.00033424,4]
[314897501,1708625500009,-920.28,0.00033424,4]
[314897502,1708625500018,-595.79,0.00033424,4]
[314897503,1708625500028,-500.0,0.00033424,4]
[314897504,1708625500038,-151.0,0.00033424,7]
[314897505,1708625500048,-616.74,0.00033424,4]
[314897506,1708625500058,-693.29,0.00033424,4]
[314897507,1708625500067,-704.13,0.00033424,4]
[314897508,1708625500077,-970.8,0.00033424,4]
[314897509,1708625500089,-523.23,0.00033424,4]
[314897510,1708625500099,-570.15997112,0.00033424,4]
[314897511,1708625500108,-552.1,0.00033424,4]
[314897512,1708625500118,-569.97,0.00033424,4]
[314897513,1708625500127,-500.0,0.00033424,4]
[314897514,1708625500137,-546.34,0.00033424,4]
[314897515,1708625500146,-500.0,0.00033424,4]
[314897516,1708625500156,-272.392206,0.00033424,7]
[314897517,1708625500165,-597.14,0.00033424,4]
[314897518,1708625500175,-272.392206,0.00033424,7]
[314897519,1708625500186,-936.39,0.00033424,4]
[314897520,1708625500195,-500.0,0.00033424,4]
[314897521,1708625500205,-500.0,0.00033424,4]
[314897522,1708625500214,-500.0,0.00033424,4]
[314897523,1708625500224,-1000.0,0.00033424,7]
[314897524,1708625500234,-1322.67,0.00033424,4]
[314897525,1708625500245,-500.0,0.00033424,4]
[314897526,1708625500254,-412.47156239,0.00033424,4]
[314897527,1708625500265,-513.58,0.00033424,4]
[314897528,1708625500275,-500.0,0.00033424,4]
[314897529,1708625500285,-1000.0,0.00033424,7]
[314897530,1708625500295,-500.0,0.00033424,4]
[314897531,1708625500305,-652.66,0.00033424,4]
[314897532,1708625500315,-500.0,0.00033424,4]
[314897533,1708625500324,-500.0,0.00033424,4]
[314897534,1708625500334,-905.48,0.00033424,4]
[314897535,1708625500344,-500.0,0.00033424,4]
[314897536,1708625500354,-500.0,0.00033424,4]
[314897537,1708625500364,-902.91,0.00033424,4]
[314897538,1708625500374,-500.0,0.00033424,4]
[314897539,1708625500383,-500.0,0.00033424,4]
[314897540,1708625500393,-500.0,0.00033424,4]
[314897541,1708625500404,-500.0,0.00033424,4]
[314897542,1708625500414,-577.69,0.00033424,4]
[314897543,1708625500424,-500.0,0.00033424,4]
[314897544,1708625500435,-1566.96,0.00033424,4]
[314897545,1708625500444,-500.0,0.00033424,4]
[314897546,1708625500454,-500.0,0.00033424,4]
[314897547,1708625500464,-885.89,0.00033424,4]
[314897548,1708625500475,-567.92,0.00033424,4]
[314897549,1708625500487,-642.58,0.00033424,4]
[314897550,1708625500497,-851.67,0.00033424,4]
[314897551,1708625500507,-500.0,0.00033424,2]
[314897552,1708625500517,-500.0,0.00033424,4]
[314897553,1708625500527,-572.75,0.00033424,4]
[314897554,1708625500537,-583.46,0.00033424,4]
[314897555,1708625500547,-1131.89,0.00033424,4]
[314897556,1708625500556,-500.0,0.00033424,4]
[314897557,1708625500566,-500.0,0.00033424,4]
[314897558,1708625500576,-500.0,0.00033424,4]
[314897559,1708625500587,-500.0,0.00033424,4]
[314897560,1708625500597,-500.0,0.00033424,4]
[314897561,1708625500608,-568.65,0.00033424,4]
[314897562,1708625500618,-500.0,0.00033424,4]
[314897563,1708625500629,-500.0,0.00033424,4]
[314897564,1708625500639,-500.0,0.00033424,4]
[314897565,1708625500648,-1313.43,0.00033424,4]
[314897566,1708625500658,-3828.9,0.00033424,4]
[314897567,1708625500669,-500.0,0.00033424,4]
[314897568,1708625500946,-500.0,0.00033424,4]
[314897569,1708625500957,-1312.47,0.00033424,4]
[314897570,1708625500966,-500.0,0.00033424,4]
[314897571,1708625500976,-500.0,0.00033424,4]
[314897572,1708625500985,-637.56,0.00033424,4]
[314897573,1708625500994,-500.0,0.00033424,4]
[314897574,1708625501004,-500.0,0.00033424,4]
[314897575,1708625501013,-413.27607964,0.00033424,4]
[314897576,1708625501023,-500.0,0.00033424,4]
[314897577,1708625501032,-500.0,0.00033424,4]
[314897578,1708625501041,-513.20000685,0.00033424,4]
[314897579,1708625501053,-771.01,0.00033424,4]
[314897580,1708625501064,-561.33872255,0.00033424,4]
[314897581,1708625501074,-538.47098507,0.00033424,4]
[314897582,1708625501083,-670.32,0.00033424,4]
[314897583,1708625501093,-905.48,0.00033424,4]
[314897584,1708625501102,-184.71853678,0.00033424,4]
[314897585,1708625501111,-587.38,0.00033424,4]
[314897586,1708625501120,-539.94177101,0.00033424,4]
[314897587,1708625501130,-500.0,0.00033424,4]
[314897588,1708625501139,-500.0,0.00033424,4]
[314897589,1708625501149,-500.0,0.00033424,4]
[314897590,1708625501159,-500.0,0.00033424,4]
[314897591,1708625501170,-500.0,0.00033424,4]
[314897592,1708625501179,-500.0,0.00033424,4]
[314897593,1708625501189,-500.0,0.00033424,4]
[314897594,1708625501199,-500.0,0.00033424,4]
[314897595,1708625501208,-159.745135,0.00033424,7]
[314897596,1708625501218,-500.0,0.00033424,4]
[314897597,1708625501227,-500.0,0.00033424,4]
[314897598,1708625501239,-1115.25,0.00033424,4]
[314897599,1708625501248,-159.745135,0.00033424,7]
[314897600,1708625501258,-617.27,0.00033424,4]
[314897601,1708625501269,-1239.94,0.00033424,4]
[314897602,1708625501278,-500.0,0.00033424,4]
[314897603,1708625501290,-920.63,0.00033424,4]
[314897604,1708625501299,-799.98,0.00033424,4]
[314897605,1708625501309,-1030.29,0.00033424,4]
[314897606,1708625501318,-500.0,0.00033424,4]
[314897607,1708625501328,-537.54201499,0.00033424,4]
[314897608,1708625501338,-565.34425936,0.00033424,4]
[314897609,1708625501347,-500.0,0.00033424,4]
[314897610,1708625501356,-209.966881,0.00033424,7]
[314897611,1708625501366,-500.0,0.00033424,4]
[314897612,1708625501375,-209.966881,0.00033424,7]
[314897613,1708625501385,-500.0,0.00033424,4]
[314897614,1708625501395,-728.76,0.00033424,4]
[314897615,1708625501405,-741.55,0.00033424,4]
[314897616,1708625501414,-617.56,0.00033424,4]
[314897617,1708625501424,-500.0,0.00033424,4]
[314897618,1708625501436,-664.22,0.00033424,4]
[314897619,1708625501446,-500.0,0.00033424,4]
[314897620,1708625501455,-582.0,0.00033424,4]
[314897621,1708625501465,-500.0,0.00033424,4]
[314897622,1708625501475,-541.78,0.00033424,4]
[314897623,1708625501484,-764.35,0.00033424,4]
[314897624,1708625501494,-500.0,0.00033424,4]
[314897625,1708625501504,-500.0,0.00033424,4]
[314897626,1708625501514,-1242.24,0.00033424,4]
[314897627,1708625501524,-872.206723,0.00033424,7]
[314897628,1708625501534,-1041.1,0.00033424,4]
[314897629,1708625501543,-500.0,0.00033424,4]
[314897630,1708625501553,-1494.6,0.00033424,4]
[314897631,1708625501562,-500.0,0.00033424,4]
[314897632,1708625501575,-872.206723,0.00033424,7]
[314897633,1708625501586,-500.0,0.00033424,4]
[314897634,1708625501597,-983.44,0.00033424,4]
[314897635,1708625501606,-273.001206,0.00033424,7]
[314897636,1708625501615,-500.0,0.00033424,4]
[314897637,1708625501625,-871.52,0.00033424,4]
[314897638,1708625501635,-273.001206,0.00033424,7]
[314897639,1708625501644,-500.0,0.00033424,4]
[314897640,1708625501654,-937.84,0.00033424,4]
[314897641,1708625501663,-500.0,0.00033424,4]
[314897642,1708625501673,-940.94,0.00033424,4]
[314897643,1708625501684,-500.0,0.00033424,4]
[314897644,1708625501694,-500.0,0.00033424,4]
[314897645,1708625501703,-500.0,0.00033424,4]
[314897646,1708625501713,-1267.73,0.00033424,4]
[314897647,1708625501722,-900.68,0.00033424,4]
[314897648,1708625501731,-988.42,0.00033424,4]
[314897649,1708625501740,-598.66,0.00033424,4]
[314897650,1708625501750,-1407.88,0.00033424,4]
[314897651,1708625501760,-500.0,0.00033424,4]
[314897652,1708625501770,-500.0,0.00033424,4]
[314897653,1708625501779,-1015.51,0.00033424,4]
[314897654,1708625501789,-500.0,0.00033424,4]
[314897655,1708625501799,-611.21930927,0.00033424,4]
[314897656,1708625501811,-500.0,0.00033424,4]
[314897657,1708625501821,-500.0,0.00033424,4]
[314897658,1708625501832,-500.0,0.00033424,4]
[314897659,1708625501842,-625.15,0.00033424,4]
[314897660,1708625501852,-824.67,0.00033424,4]
[314897661,1708625501864,-1044.83,0.00033424,4]
[314897662,1708625501876,-848.25,0.00033424,4]
[314897663,1708625501886,-715.27,0.00033424,4]
[314897664,1708625501896,-500.0,0.00033424,4]
[314897665,1708625501907,-500.0,0.00033424,4]
[314897666,1708625501918,-500.0,0.00033424,4]
[314897667,1708625501927,-500.0,0.00033424,4]
[314897668,1708625501936,-1782.080711,0.00033424,7]
[314897669,1708625501947,-500.0,0.00033424,4]
[314897670,1708625501958,-151.489577,0.00033424,7]
[314897671,1708625501968,-979.83,0.00033424,4]
[314897672,1708625501978,-240.853509,0.00033424,7]
[314897673,1708625501987,-1292.8,0.00033424,4]
[314897674,1708625501996,-500.0,0.00033424,4]
[314897675,1708625502007,-500.0,0.00033424,4]
[314897676,1708625502017,-240.853509,0.00033424,7]
[314897677,1708625502027,-579.59,0.00033424,4]
[314897678,1708625502036,-651.21,0.00033424,4]
[314897679,1708625502045,-1259.45,0.00033424,4]
[314897680,1708625502055,-709.91,0.00033424,4]
[314897681,1708625502066,-150.0,0.00033424,4]
[314897682,1708625502076,-151.0,0.00033424,7]
[314897683,1708625502087,-500.0,0.00033424,4]
[314897684,1708625502097,-695.7,0.00033424,4]
[314897685,1708625502107,-534.14734115,0.00033424,4]
[314897686,1708625502117,-972.69,0.00033424,4]
[314897687,1708625502127,-500.0,0.00033424,4]
[314897688,1708625502137,-521.447789,0.00033424,7]
[314897689,1708625502147,-500.0,0.00033424,4]
[314897690,1708625502156,-1106.66,0.00033424,4]
[314897691,1708625502168,-472.67374031,0.00033424,4]
[314897692,1708625502178,-521.447789,0.00033424,7]
[314897693,1708625502189,-1263.76,0.00033424,4]
[314897694,1708625502199,-500.0,0.00033424,4]
[314897695,1708625502209,-500.0,0.00033424,4]
[314897696,1708625502218,-1595.37,0.00033424,4]
[314897697,1708625502230,-535.25,0.00033424,4]
[314897698,1708625502240,-500.0,0.00033424,4]
[314897699,1708625502251,-1321.09,0.00033424,4]
[314897700,1708625502260,-500.0,0.00033424,4]
[314897701,1708625502270,-841.52,0.00033424,4]
[314897702,1708625502280,-162.346877,0.00033424,2]
[314897703,1708625502291,-931.24,0.00033424,4]
[314897704,1708625502302,-593.4,0.00033424,4]
[314897705,1708625502311,-505.68,0.00033424,4]
[314897706,1708625502321,-527.41339426,0.00033424,4]
[314897707,1708625502332,-162.346877,0.00033424,2]
[314897708,1708625502341,-500.0,0.00033424,4]
[314897709,1708625502351,-1083.33,0.00033424,4]
[314897710,1708625502361,-511.15686662,0.00033424,4]
[314897711,1708625502370,-1312.31,0.00033424,4]
[314897712,1708625502381,-1322.97,0.00033424,4]
[314897713,1708625502390,-500.0,0.00033424,4]
[314897714,1708625502399,-6861.46,0.00033424,4]
[314897715,1708625502409,-500.0,0.00033424,4]
[314897716,1708625502418,-500.0,0.00033424,4]
[314897717,1708625502430,-7508.74,0.00033424,4]
[314897718,1708625502439,-500.0,0.00033424,4]
[314897719,1708625502450,-500.0,0.00033424,4]
[314897720,1708625502459,-500.0,0.00033424,4]
[314897721,1708625502470,-308.051986,0.00033424,7]
[314897722,1708625502479,-2188.57,0.00033424,4]
[314897723,1708625502488,-640.5,0.00033424,4]
[314897724,1708625502498,-1521.19,0.00033424,4]
[314897725,1708625502507,-1556.17,0.00033424,2]
[314897726,1708625502516,-1367.32,0.00033424,4]
[314897727,1708625502526,-579.67,0.00033424,4]
[314897728,1708625502536,-500.0,0.00033424,4]
[314897729,1708625502545,-500.0,0.00033424,4]
[314897730,1708625502554,-151.0,0.00033424,7]
[314897731,1708625502563,-500.0,0.00033424,4]
[314897732,1708625502573,-308.051986,0.00033424,7]
[314897733,1708625502582,-500.0,0.00033424,4]
[314897734,1708625502591,-3289.02,0.00033424,4]
[314897735,1708625502601,-1435.75,0.00033424,4]
[314897736,1708625502609,-7764.94,0.00033424,4]
[314897737,1708625502619,-670.88,0.00033424,4]
[314897738,1708625502628,-1463.74,0.00033424,4]
[314897739,1708625502637,-905.05,0.00033424,4]
[314897740,1708625502647,-500.0,0.00033424,4]
[314897741,1708625502656,-500.0,0.00033424,4]
[314897742,1708625502665,-500.0,0.00033424,4]
[314897743,1708625502674,-500.0,0.00033424,4]
[314897744,1708625502685,-2618.09,0.00033424,4]
[314897745,1708625502695,-151.0,0.00033424,7]
[314897746,1708625502704,-1754.26,0.00033424,4]
[314897747,1708625502714,-230.005431,0.00033424,7]
[314897748,1708625502723,-571.38,0.00033424,4]
[314897749,1708625502732,-500.0,0.00033424,4]
[314897750,1708625502741,-230.005431,0.00033424,7]
[314897751,1708625502750,-1224.57,0.00033424,4]
[314897752,1708625502760,-1412.23,0.00033424,4]
[314897753,1708625502769,-1295.05,0.00033424,4]
[314897754,1708625502778,-2025.9,0.00033424,4]
[314897755,1708625502787,-500.0,0.00033424,4]
[314897756,1708625502797,-734.04,0.00033424,4]
[314897757,1708625502806,-16810.08,0.00033424,4]
[314897758,1708625502815,-500.0,0.00033424,4]
[314897759,1708625502824,-3953.01,0.00033424,4]
[314897760,1708625502832,-1357.88,0.00033424,4]
[314897761,1708625502842,-500.0,0.00033424,4]
[314897762,1708625502850,-500.0,0.00033424,4]
[314897763,1708625502860,-523.91,0.00033424,4]
[314897764,1708625502869,-500.0,0.00033424,4]
[314897765,1708625502883,-500.0,0.00033424,4]
[314897766,1708625502892,-156.888403,0.00033424,7]
[314897767,1708625502901,-1319.7,0.00033424,4]
[314897768,1708625502910,-500.0,0.00033424,4]
[314897769,1708625502921,-1306.91,0.00033424,4]
[314897770,1708625502930,-2921.05,0.00033424,4]
[314897771,1708625502939,-4012.02,0.00033424,4]
[314897772,1708625502950,-3520.12,0.00033424,4]
[314897773,1708625502959,-156.888403,0.00033424,7]
[314897774,1708625502968,-1203.69,0.00033424,4]
[314897775,1708625502978,-7422.46,0.00033424,4]
[314897776,1708625502987,-500.0,0.00033424,4]
[314897777,1708625502996,-2325.63,0.00033424,4]
[314897778,1708625503005,-595.22,0.00033424,4]
[314897779,1708625503014,-500.0,0.00033424,4]
[314897780,1708625503024,-564.16153979,0.00033424,4]
[314897781,1708625503033,-252.46976422,0.00033424,4]
[314897782,1708625503043,-578.71,0.00033424,4]
[314897783,1708625503053,-500.0,0.00033424,4]
[314897784,1708625503062,-896.84,0.00033424,4]
[314897785,1708625503073,-500.0,0.00033424,4]
[314897786,1708625503084,-802.17,0.00033424,4]
[314897787,1708625503093,-500.0,0.00033424,4]
[314897788,1708625503102,-579.72,0.00033424,4]
[314897789,1708625503111,-2641.23,0.00033424,4]
[314897790,1708625503120,-999.86,0.00033424,4]
[314897791,1708625503129,-3363.68,0.00033424,4]
[314897792,1708625503138,-2799.21,0.00033424,4]
[314897793,1708625503147,-500.0,0.00033424,4]
[314897794,1708625503157,-500.0,0.00033424,4]
[314897795,1708625503166,-500.0,0.00033424,4]
[314897796,1708625503175,-522.87,0.00033424,4]
[314897797,1708625503185,-879.41,0.00033424,4]
[314897798,1708625503194,-922.6,0.00033424,4]
[314897799,1708625503205,-2871.255775,0.00033424,7]
[314897800,1708625503214,-511.94586453,0.00033424,4]
[314897801,1708625503224,-7827.29,0.00033424,4]
[314897802,1708625503234,-1225.83,0.00033424,4]
[314897803,1708625503243,-708.41,0.00033424,4]
[314897804,1708625503354,-2871.255775,0.00033424,7]
[314897805,1708625503365,-1375.3,0.00033424,4]
[314897806,1708625503375,-4523.83,0.00033424,4]
[314897807,1708625503384,-4862.62,0.00033424,4]
[314897808,1708625503394,-346.61,0.00033424,4]
[314897809,1708625503404,-735.21,0.00033424,4]
[314897810,1708625503414,-757.98,0.00033424,4]
[314897811,1708625503423,-876.68,0.00033424,4]
[314897812,1708625503434,-500.0,0.00033424,4]
[314897813,1708625503443,-3270.53,0.00033424,4]
[314897814,1708625503453,-2130.22,0.00033424,4]
[314897815,1708625503462,-3006.31,0.00033424,4]
[314897816,1708625503471,-358.319661,0.00033424,7]
[314897817,1708625503480,-151.0,0.00033424,7]
[314897818,1708625503489,-1542.31,0.00033424,4]
[314897819,1708625503498,-5087.25,0.00033424,4]
[314897820,1708625503507,-869.35,0.00033424,4]
[314897821,1708625503517,-500.0,0.00033424,4]
[314897822,1708625503526,-500.0,0.00033424,4]
[314897823,1708625503535,-542.21446475,0.00033424,4]
[314897824,1708625503544,-1701.19,0.00033424,4]
[314897825,1708625503554,-1144.38,0.00033424,4]
[314897826,1708625503563,-358.319661,0.00033424,7]
[314897827,1708625503572,-500.0,0.00033424,4]
[314897828,1708625503581,-10191.48,0.00033424,4]
[314897829,1708625503591,-14297.7,0.00033424,4]
[314897830,1708625503600,-870.84,0.00033424,4]
[314897831,1708625503609,-500.0,0.00033424,4]
[314897832,1708625503619,-1739.37,0.00033424,4]
[314897833,1708625503628,-151.0,0.00033424,7]
[314897834,1708625503637,-500.0,0.00033424,4]
[314897835,1708625503646,-1219.49,0.00033424,4]
[314897836,1708625503656,-151.0,0.00033424,7]
[314897837,1708625503665,-500.0,0.00033424,4]
[314897838,1708625503674,-500.0,0.00033424,4]
[314897839,1708625503684,-662.36,0.00033424,4]
[314897840,1708625503693,-5320.7,0.00033424,4]
[314897841,1708625503702,-1389.1,0.00033424,4]
[314897842,1708625503711,-500.0,0.00033424,4]
[314897843,1708625503721,-1178.0,0.00033424,4]
[314897844,1708625503730,-4535.27,0.00033424,4]
[314897845,1708625503739,-1510.56,0.00033424,4]
[314897846,1708625503749,-500.0,0.00033424,4]
[314897847,1708625503759,-500.0,0.00033424,4]
[314897848,1708625503768,-151.0,0.00033424,7]
[314897849,1708625503778,-574.08,0.00033424,4]
[314897850,1708625503788,-913.43,0.00033424,4]
[314897851,1708625503797,-500.0,0.00033424,4]
[314897852,1708625503807,-957.57,0.00033424,4]
[314897853,1708625503817,-1132.71,0.00033424,4]
[314897854,1708625503827,-151.0,0.00033424,7]
[314897855,1708625503837,-1614.812565,0.00033424,7]
[314897856,1708625503847,-500.0,0.00033424,2]
[314897857,1708625503857,-1840.14,0.00033424,4]
[314897858,1708625503866,-182.999342,0.00033424,7]
[314897859,1708625503880,-1105.16,0.00033424,4]
[314897860,1708625503889,-182.999342,0.00033424,7]
[314897861,1708625503898,-1614.812565,0.00033424,7]
[314897862,1708625503908,-363.13,0.00033424,4]
[314897863,1708625503918,-500.0,0.00033424,4]
[314897864,1708625503929,-500.0,0.00033424,4]
[314897865,1708625503939,-8688.16,0.00033424,4]
[314897866,1708625503947,-500.0,0.00033424,4]
[314897867,1708625503958,-856.33,0.00033424,4]
[314897868,1708625503968,-1035.38,0.00033424,4]
[314897869,1708625503977,-500.0,0.00033424,4]
[314897870,1708625503986,-597.54,0.00033424,4]
[314897871,1708625503995,-500.0,0.00033424,4]
[314897872,1708625504005,-500.0,0.00033424,4]
[314897873,1708625504014,-1031.07,0.00033424,4]
[314897874,1708625504023,-151.0,0.00033424,7]
[314897875,1708625504032,-607.73,0.00033424,4]
[314897876,1708625504041,-4152.62,0.00033424,4]
[314897877,1708625504050,-4573.59,0.00033424,4]
[314897878,1708625504059,-5220.29,0.00033424,4]
[314897879,1708625504068,-1750.52,0.00033424,4]
[314897880,1708625504077,-740.42,0.00033424,4]
[314897881,1708625504092,-543.8,0.00033424,4]
[314897882,1708625504101,-27929.76,0.00033424,4]
[314897883,1708625504110,-579.71,0.00033424,4]
[314897884,1708625504120,-500.0,0.00033424,4]
[314897885,1708625504129,-2617.91,0.00033424,4]
[314897886,1708625504138,-163.954301,0.00033424,7]
[314897887,1708625504147,-500.0,0.00033424,4]
[314897888,1708625504157,-769.4,0.00033424,4]
[314897889,1708625504166,-500.0,0.00033424,4]
[314897890,1708625504176,-500.0,0.00033424,4]
[314897891,1708625504186,-163.954301,0.00033424,7]
[314897892,1708625504196,-3104.43,0.00033424,4]
[314897893,1708625504205,-2557.13,0.00033424,4]
[314897894,1708625504214,-151.0,0.00033424,2]
[314897895,1708625504223,-763.62,0.00033424,4]
[314897896,1708625504232,-31733.49,0.00033424,4]
[314897897,1708625504242,-635.4,0.00033424,4]
[314897898,1708625504251,-1402.56,0.00033424,4]
[314897899,1708625504259,-500.0,0.00033424,4]
[314897900,1708625504269,-10076.31,0.00033424,4]
[314897901,1708625504278,-719.16,0.00033424,4]
[314897902,1708625504288,-500.0,0.00033424,4]
[314897903,1708625504297,-151.0,0.00033424,2]
[314897904,1708625504306,-549.71,0.00033424,4]
[314897905,1708625504315,-540.22,0.00033424,4]
[314897906,1708625504324,-815.24,0.00033424,4]